bitfinex/quotes_BTCUSD_20241117
["timestamp","ask_amount","ask_price","bid_price","bid_amount"]
[1731878177771,0.7644288,89503.0,89502.0,0.4586715]
[1731878178189,0.39506187,89503.0,89502.0,0.4586715]
[1731878178394,0.78730277,89503.0,89502.0,0.4586715]
[1731878181111,0.78730277,89503.0,89502.0,0.4114715]
[1731878181304,0.78730277,89503.0,89502.0,0.4214715]
[1731878184204,0.76430277,89503.0,89502.0,0.4695715]
[1731878184428,1.06438426,89503.0,89502.0,0.4695715]
[1731878184637,0.76430277,89503.0,89502.0,0.4695715]
[1731878186375,0.76430277,89503.0,89502.0,0.35890554]
[1731878187235,0.22760632,89501.0,89500.0,0.30005]
[1731878187433,0.70814116,89501.0,89500.0,0.30005]
[1731878187637,0.71484791,89501.0,89500.0,0.30005]
[1731878187984,0.71484791,89501.0,89500.0,0.38235]
[1731878188183,0.70984791,89501.0,89500.0,0.38235]
[1731878188389,0.91492555,89501.0,89500.0,0.38235]
[1731878188966,0.91778295,89501.0,89500.0,0.38235]
[1731878189349,0.92278295,89501.0,89500.0,0.38235]
[1731878190174,0.92279295,89501.0,89500.0,0.43065]
[1731878190412,0.71770531,89501.0,89500.0,0.43065]
[1731878190627,0.72270531,89501.0,89500.0,0.43065]
[1731878191461,0.71770531,89501.0,89500.0,0.43065]
[1731878191595,0.72270531,89501.0,89500.0,0.43065]
[1731878193143,0.72282259,89501.0,89500.0,0.43065]
[1731878193970,0.72282259,89501.0,89500.0,0.38235]
[1731878194127,0.01573372,89499.0,89498.0,8e-07]
[1731878194331,0.34769227,89499.0,89498.0,8e-07]
[1731878194554,0.71481906,89499.0,89498.0,8e-07]
[1731878194792,0.71481906,89499.0,89473.0,0.0008554]
[1731878194793,0.12748172,89487.0,89486.0,0.0795]
[1731878194949,0.12748172,89487.0,89473.0,0.0008554]
[1731878194950,0.22748772,89482.0,89481.0,0.07970706]
[1731878195150,0.34762969,89482.0,89481.0,0.07970706]
[1731878195353,0.73775648,89482.0,89481.0,0.00020706]
[1731878195556,0.98804215,89482.0,89481.0,0.00020706]
[1731878195981,0.73775648,89482.0,89481.0,0.00020706]
[1731878196232,0.74175648,89482.0,89481.0,0.00020706]
[1731878196399,0.74175648,89482.0,89481.0,0.07970706]
[1731878196970,0.76475648,89482.0,89481.0,0.07970706]
[1731878197170,0.76475648,89482.0,89481.0,0.00020706]
[1731878197171,0.79950566,89482.0,89481.0,0.00020706]
[1731878197387,0.7994966,89482.0,89481.0,0.00020706]
[1731878197954,0.76874742,89482.0,89481.0,0.00020706]
[1731878198300,0.79174742,89482.0,89481.0,0.00020706]
[1731878198715,0.79174742,89482.0,89481.0,0.00106196]
[1731878199325,0.82647117,89482.0,89481.0,0.00106196]
[1731878199531,0.111795,89449.0,89448.0,0.35995199]
[1731878199743,0.11907028,89449.0,89448.0,0.35995199]
[1731878200382,0.22813283,89449.0,89448.0,0.35995199]
[1731878200789,0.22813283,89449.0,89448.0,0.34495199]
[1731878202018,0.22913283,89449.0,89448.0,0.34495199]
[1731878202755,0.22913283,89449.0,89448.0,0.47450199]
[1731878204535,0.23099023,89449.0,89448.0,0.47450199]
[1731878205255,0.23532357,89449.0,89448.0,0.47450199]
[1731878205464,0.23532357,89449.0,89448.0,0.42540199]
[1731878206378,0.23432357,89449.0,89448.0,0.42540199]
[1731878206585,0.24232357,89449.0,89448.0,0.42540199]
[1731878206951,0.25271612,89449.0,89448.0,0.42540199]
[1731878207156,0.24332357,89449.0,89448.0,0.42540199]
[1731878207745,0.23432357,89449.0,89448.0,0.42540199]
[1731878207951,0.23932357,89449.0,89448.0,0.42540199]
[1731878208201,0.29506617,89449.0,89448.0,0.34490199]
[1731878208414,0.24546617,89449.0,89448.0,0.34490199]
[1731878208653,0.24146617,89449.0,89448.0,0.34490199]
[1731878208792,0.24732357,89449.0,89448.0,0.34490199]
[1731878209164,0.24546617,89449.0,89448.0,0.34490199]
[1731878209312,0.23746617,89449.0,89448.0,0.34490199]
[1731878209568,0.005,89426.0,89407.0,0.1]
[1731878209776,0.005,89426.0,89425.0,0.16735001]
[1731878210000,0.005,89426.0,89425.0,0.00223625]
[1731878210211,0.005,89432.0,89427.0,0.111821]
[1731878210434,0.005,89432.0,89428.0,0.00223611]
[1731878210842,0.005,89436.0,89422.0,0.223658]
[1731878211046,0.005,89436.0,89435.0,0.111813]
[1731878211273,0.16735001,89441.0,89431.0,0.00223602]
[1731878211615,0.16735001,89441.0,89439.0,0.111808]
[1731878212055,0.16735001,89446.0,89421.0,0.023]
[1731878212260,0.16735001,89446.0,89442.0,0.111803]
[1731878212513,0.16735001,89446.0,89436.0,0.111811]
[1731878212514,0.005,89442.0,89436.0,0.111811]
[1731878212758,0.005,89442.0,89422.0,0.10906255]
[1731878212759,0.005,89442.0,89439.0,0.0491]
[1731878212970,0.005,89442.0,89441.0,0.111805]
[1731878213180,0.005,89445.0,89441.0,0.0805]
[1731878213406,0.005,89447.0,89442.0,0.0491]
[1731878213634,0.16735001,89447.0,89443.0,0.0805]
[1731878213899,0.005,89452.0,89445.0,0.0491]
[1731878214129,0.005,89452.0,89426.0,0.001]
[1731878214130,0.005,89452.0,89451.0,0.0805]
[1731878214638,0.16735001,89456.0,89451.0,0.0805]
[1731878214639,0.005,89456.0,89452.0,0.0491]
[1731878214875,0.005,89456.0,89453.0,0.0805]
[1731878215105,0.005,89461.0,89456.0,0.0491]
[1731878215279,0.005,89463.0,89459.0,0.111782]
[1731878215427,0.005,89463.0,89460.0,0.0805]
[1731878215638,0.005,89472.0,89461.0,0.08273537]
[1731878215852,0.16735001,89471.0,89462.0,0.0491]
[1731878216169,0.16735001,89471.0,89470.0,0.111769]
[1731878216383,0.005,89477.0,89476.0,0.241361]
[1731878216709,0.16735001,89480.0,89479.0,0.192258]
[1731878217119,0.00604375,89480.0,89479.0,0.192258]
[1731878217339,0.00604375,89480.0,89479.0,0.1944928]
[1731878217563,0.005,89498.0,89490.0,0.0455]
[1731878217802,0.16735001,89500.0,89491.0,0.00223451]
[1731878218020,0.16735001,89500.0,89490.0,0.0455]
[1731878218021,0.00604857,89497.0,89493.0,0.223481]
[1731878218263,0.16735001,89500.0,89499.0,0.111733]
[1731878218722,0.005,89502.0,89499.0,0.111733]
[1731878218951,0.005,89502.0,89498.0,0.111733]
[1731878219177,0.005,89502.0,89493.0,0.223481]
[1731878219178,0.005,89502.0,89493.0,0.001]
[1731878219633,0.116729,89502.0,89495.0,0.111737]
[1731878220008,0.116729,89502.0,89499.0,0.001]
[1731878220411,0.005,89502.0,89499.0,0.001]
[1731878220690,0.111731,89500.0,89499.0,0.001]
[1731878220907,0.116731,89500.0,89499.0,0.001]
[1731878221138,0.116731,89500.0,89481.0,0.0785]
[1731878221139,0.11675,89485.0,89481.0,0.0785]
[1731878221353,0.111753,89483.0,89481.0,0.0785]
[1731878221583,0.11675,89485.0,89481.0,0.0785]
[1731878222330,0.111752,89484.0,89481.0,0.0785]
[1731878222537,0.005,89485.0,89481.0,0.0735]
[1731878222740,0.223505,89484.0,89481.0,0.0735]
[1731878222956,0.005,89471.0,89453.0,0.223579]
[1731878223165,0.005,89471.0,89442.0,0.25004781]
[1731878223166,0.111784,89458.0,89454.0,0.0455]
[1731878223375,0.005,89474.0,89454.0,0.0455]
[1731878223376,0.11178,89461.0,89454.0,0.0455]
[1731878223798,0.005,89463.0,89454.0,0.0455]
[1731878224413,0.005,89454.0,89448.0,0.1008554]
[1731878224590,0.111783,89459.0,89450.0,0.111793]
[1731878224858,0.16735001,89465.0,89454.0,0.223578]
[1731878224859,0.00619761,89458.0,89454.0,0.223578]
[1731878225101,0.00619761,89458.0,89457.0,0.157285]
[1731878225354,0.16735001,89464.0,89458.0,0.111784]
[1731878225565,0.111782,89460.0,89458.0,0.0785]
[1731878225779,0.005,89463.0,89458.0,0.0785]
[1731878225988,0.116783,89459.0,89458.0,0.0785]
[1731878226614,0.116784,89458.0,89457.0,0.001]
[1731878227030,0.10906255,89458.0,89457.0,0.001]
[1731878227241,0.22084655,89458.0,89457.0,0.001]
[1731878227444,0.22584655,89458.0,89457.0,0.001]
[1731878227650,0.111795,89449.0,89448.0,0.0008554]
[1731878228936,0.111793,89451.0,89448.0,0.0008554]
[1731878229156,0.111795,89450.0,89448.0,0.0008554]
[1731878229565,0.111795,89449.0,89448.0,0.0008554]
[1731878230863,0.22085755,89449.0,89448.0,0.0008554]
[1731878231297,0.22085755,89449.0,89448.0,0.0018554]
[1731878231519,0.22585755,89449.0,89448.0,0.0018554]
[1731878231959,0.22585755,89449.0,89448.0,0.0008554]
[1731878232153,0.23205051,89449.0,89448.0,0.0008554]
[1731878232385,0.23205051,89449.0,89448.0,0.0018554]
[1731878233877,0.2342819,89449.0,89448.0,0.0018554]
[1731878234122,0.23205051,89449.0,89448.0,0.0018554]
[1731878234342,0.2342819,89449.0,89448.0,0.0018554]
[1731878234552,0.23205051,89449.0,89448.0,0.0018554]
[1731878235443,0.2392819,89449.0,89448.0,0.0018554]
[1731878235861,0.2412819,89449.0,89448.0,0.0018554]
[1731878237170,0.2412819,89449.0,89448.0,0.0008554]
[1731878237171,0.2402819,89449.0,89448.0,0.0008554]
[1731878237643,0.2392819,89449.0,89448.0,0.0008554]
[1731878237873,0.23605051,89449.0,89448.0,0.0008554]
[1731878238301,0.26305051,89449.0,89448.0,0.0008554]
[1731878238500,0.2382819,89449.0,89448.0,0.0008554]
[1731878238707,0.2652819,89449.0,89448.0,0.0008554]
[1731878239133,0.2382819,89449.0,89448.0,0.0008554]
[1731878239549,0.23205051,89449.0,89448.0,0.0008554]
[1731878239962,0.25805051,89449.0,89448.0,0.0008554]
[1731878240426,0.26505051,89449.0,89448.0,0.0008554]
[1731878240637,0.25805051,89449.0,89448.0,0.0008554]
[1731878240848,0.23205051,89449.0,89448.0,0.0008554]
[1731878241066,0.24605051,89449.0,89448.0,0.0008554]
[1731878241292,0.25405051,89449.0,89448.0,0.0008554]
[1731878242402,0.2562819,89449.0,89448.0,0.0008554]
[1731878242626,0.2572819,89449.0,89448.0,0.0008554]
[1731878242835,0.3109819,89449.0,89448.0,0.0008554]
[1731878243042,0.30275051,89449.0,89448.0,0.0008554]
[1731878243266,0.30875051,89449.0,89448.0,0.0008554]
[1731878243690,0.38745051,89449.0,89448.0,0.0008554]
[1731878244103,0.43363746,89449.0,89448.0,0.0008554]
[1731878245254,0.42763746,89449.0,89448.0,0.0008554]
[1731878245493,0.43163746,89449.0,89448.0,0.0008554]
[1731878245726,0.43363746,89449.0,89448.0,0.0008554]
[1731878246574,0.43263746,89449.0,89448.0,0.0008554]
[1731878246984,0.43363746,89449.0,89448.0,0.0008554]
[1731878249348,0.45663746,89449.0,89448.0,0.0008554]
[1731878251207,0.43263746,89449.0,89448.0,0.0008554]
[1731878251456,0.43363746,89449.0,89448.0,0.0008554]
[1731878259558,0.45663746,89449.0,89448.0,0.0008554]
[1731878265909,0.35393746,89449.0,89448.0,0.0008554]
[1731878266137,0.30523746,89449.0,89448.0,0.0008554]
[1731878267298,0.30723746,89449.0,89448.0,0.0008554]
[1731878268511,0.25405051,89449.0,89448.0,0.0008554]
[1731878269678,0.13998796,89449.0,89448.0,0.0008554]
[1731878269914,0.13998796,89449.0,89448.0,0.1304554]
[1731878269915,0.02819296,89449.0,89448.0,0.1304554]
[1731878270409,0.02819296,89449.0,89448.0,0.2422514]
[1731878270941,0.022,89449.0,89448.0,0.2422514]
[1731878271216,0.02808334,89449.0,89448.0,0.2422514]
[1731878271442,0.09964822,89469.0,89448.0,0.2422514]
[1731878271443,0.16906041,89466.0,89465.0,0.0471]
[1731878271670,0.111793,89451.0,89450.0,0.0471]
[1731878271910,0.004,89449.0,89448.0,0.0008554]
[1731878272132,0.22485755,89449.0,89448.0,0.0008554]
[1731878272382,0.22596199,89449.0,89448.0,0.0008554]
[1731878272604,0.23196199,89449.0,89448.0,0.0008554]
[1731878272812,0.22596199,89449.0,89448.0,0.0008554]
[1731878274235,0.37793799,89449.0,89448.0,0.0008554]
[1731878274934,0.37793799,89449.0,89448.0,0.0028554]
[1731878276928,0.38293799,89449.0,89448.0,0.0028554]
[1731878277146,0.38528231,89449.0,89448.0,0.0028554]
[1731878277371,0.38280918,89449.0,89448.0,0.0028554]
[1731878277611,0.38780918,89449.0,89448.0,0.0028554]
[1731878278261,0.38780918,89449.0,89448.0,0.0008554]
[1731878278482,0.41080918,89449.0,89448.0,0.0008554]
[1731878278696,0.41880918,89449.0,89448.0,0.0018554]
[1731878278920,0.42127095,89449.0,89448.0,0.0018554]
[1731878279131,0.4592014,89449.0,89448.0,0.0008554]
[1731878279352,0.4522014,89449.0,89448.0,0.0028554]
[1731878279811,0.4312014,89449.0,89448.0,0.0008554]
[1731878280026,0.4462014,89449.0,89448.0,0.0018554]
[1731878280236,0.4312014,89449.0,89448.0,0.0008554]
[1731878280660,0.4522014,89449.0,89448.0,0.0028554]
[1731878280899,0.40627095,89449.0,89448.0,0.0028554]
[1731878281116,0.40380925,89449.0,89448.0,0.0028554]
[1731878281978,0.39580925,89449.0,89448.0,0.0018554]
[1731878282391,0.40380925,89449.0,89448.0,0.0028554]
[1731878284611,0.40635416,89449.0,89448.0,0.0028554]
[1731878284831,0.47825987,89449.0,89448.0,0.0028554]
[1731878285053,0.55366833,89449.0,89448.0,0.0028554]
[1731878285273,0.55616024,89449.0,89448.0,0.0028554]
[1731878285707,0.55816024,89449.0,89448.0,0.0028554]
[1731878286361,0.53716024,89449.0,89448.0,0.0008554]
[1731878286582,0.41535178,89449.0,89448.0,0.0008554]
[1731878286797,0.43435178,89449.0,89448.0,0.0028554]
[1731878287014,0.61956024,89449.0,89448.0,0.0018554]
[1731878287236,0.54985178,89449.0,89448.0,0.0018554]
[1731878287443,0.69960529,89449.0,89448.0,0.0018554]
[1731878288120,0.69160529,89449.0,89448.0,0.0008554]
[1731878288308,0.59585178,89449.0,89448.0,0.0008554]
[1731878288567,0.56885178,89449.0,89448.0,0.0008554]
[1731878288785,0.53512408,89449.0,89448.0,0.0008554]
[1731878289009,0.49620128,89449.0,89448.0,0.0008554]
[1731878289236,0.49970673,89449.0,89448.0,0.0008554]
[1731878289451,0.50218405,89449.0,89448.0,0.0008554]
[1731878290122,0.49719121,89449.0,89448.0,0.0008554]
[1731878290370,0.49719121,89449.0,89448.0,0.0008054]
[1731878290371,0.40233455,89449.0,89448.0,0.0008054]
[1731878291017,0.39633455,89449.0,89448.0,0.0008054]
[1731878291484,0.42133455,89449.0,89448.0,0.0008054]
[1731878291699,0.42133455,89449.0,89439.0,0.1488294]
[1731878291700,0.111806,89440.0,89439.0,0.1488294]
[1731878291940,0.22086855,89440.0,89439.0,0.1488294]
[1731878292171,0.23009994,89440.0,89439.0,0.1488294]
[1731878292423,0.81125414,89440.0,89439.0,0.1488294]
[1731878292634,1.0244674,89440.0,89439.0,0.1488294]
[1731878292850,0.77484334,89440.0,89439.0,0.1488294]
[1731878293059,0.78218817,89440.0,89439.0,0.1488294]
[1731878293270,0.111855,89401.0,89400.0,0.241577]
[1731878293494,0.22091755,89401.0,89400.0,0.241577]
[1731878293722,0.00755288,89401.0,89400.0,0.241577]
[1731878293936,0.11940788,89401.0,89400.0,0.241577]
[1731878294145,0.111855,89401.0,89400.0,0.241577]
[1731878295498,0.112855,89401.0,89400.0,0.242577]
[1731878295917,0.112855,89401.0,89400.0,0.241577]
[1731878295918,0.22191755,89401.0,89400.0,0.241577]
[1731878296121,0.22191755,89401.0,89400.0,0.242577]
[1731878296122,0.22291755,89401.0,89400.0,0.242577]
[1731878296355,0.22191755,89401.0,89400.0,0.241577]
[1731878296774,0.22391755,89401.0,89400.0,0.242577]
[1731878296957,0.22191755,89401.0,89400.0,0.241577]
[1731878297835,0.22091755,89401.0,89400.0,0.241577]
[1731878298310,0.22191755,89401.0,89400.0,0.242577]
[1731878298529,0.22191755,89401.0,89400.0,0.241577]
[1731878298763,0.22091755,89401.0,89400.0,0.241577]
[1731878299056,0.22291755,89401.0,89400.0,0.242577]
[1731878299268,0.22291755,89401.0,89400.0,0.241577]
[1731878299269,0.112855,89401.0,89400.0,0.241577]
[1731878299703,0.111855,89401.0,89400.0,0.241577]
[1731878299907,0.111855,89401.0,89400.0,0.242577]
[1731878300329,0.111855,89401.0,89400.0,0.241577]
[1731878302127,0.111855,89401.0,89400.0,0.242577]
[1731878302379,0.111855,89401.0,89400.0,0.241577]
[1731878302380,0.001,89401.0,89400.0,0.241577]
[1731878302596,0.002,89401.0,89400.0,0.242577]
[1731878302829,0.002,89401.0,89400.0,0.24481378]
[1731878303050,0.111848,89407.0,89401.0,0.193554]
[1731878303290,0.111849,89406.0,89401.0,0.193554]
[1731878303543,0.111842,89412.0,89406.0,0.111848]
[1731878303777,0.111843,89411.0,89406.0,0.111848]
[1731878304013,0.26978182,89421.0,89402.0,0.271608]
[1731878304014,0.04611982,89421.0,89416.0,0.111836]
[1731878304230,0.16735001,89416.0,89407.0,0.00223654]
[1731878304444,0.15518237,89421.0,89407.0,0.00223654]
[1731878304445,0.111832,89420.0,89414.0,0.111838]
[1731878304660,0.111832,89420.0,89402.0,0.0479]
[1731878304893,0.005,89428.0,89402.0,0.0479]
[1731878304894,0.005,89433.0,89409.0,0.005]
[1731878305127,0.27215093,89451.0,89423.0,0.111827]
[1731878305128,0.16735001,89429.0,89423.0,0.111827]
[1731878305357,0.16735001,89440.0,89412.0,0.005]
[1731878305358,0.16735001,89428.0,89412.0,0.005]
[1731878305575,0.223619,89438.0,89413.0,0.447362]
[1731878305873,0.16735001,89429.0,89427.0,0.111822]
[1731878306054,0.16735001,89429.0,89412.0,0.005]
[1731878306055,0.223623,89436.0,89412.0,0.005]
[1731878306266,0.223623,89436.0,89410.0,0.0817]
[1731878306267,0.111814,89434.0,89427.0,0.111822]
[1731878306496,0.16735001,89440.0,89424.0,0.223653]
[1731878306715,0.10906255,89439.0,89416.0,0.005]
[1731878306966,0.10906255,89439.0,89414.0,0.223678]
[1731878306967,0.111813,89435.0,89428.0,0.111821]
[1731878307181,0.111811,89436.0,89427.0,0.111822]
[1731878307396,0.111815,89433.0,89427.0,0.111822]
[1731878307605,0.111814,89434.0,89427.0,0.111821]
[1731878307809,0.111816,89433.0,89427.0,0.111821]
[1731878308029,0.001,89429.0,89427.0,0.111821]
[1731878308257,0.001,89429.0,89425.0,0.111825]
[1731878308471,0.111811,89436.0,89426.0,0.111823]
[1731878308682,0.111817,89432.0,89426.0,0.111823]
[1731878309539,0.001,89429.0,89426.0,0.111823]
[1731878309741,0.001,89429.0,89417.0,0.005]
[1731878309956,0.001,89429.0,89426.0,0.111823]
[1731878310157,0.001,89429.0,89428.0,0.111821]
[1731878310580,0.001,89429.0,89427.0,0.001]
[1731878310788,0.16735001,89428.0,89427.0,0.001]
[1731878310998,0.001,89432.0,89419.0,0.223665]
[1731878311210,0.16735001,89431.0,89414.0,0.223678]
[1731878311428,0.111823,89427.0,89426.0,0.001]
[1731878311679,0.111828,89423.0,89417.0,0.111835]
[1731878311892,0.16735001,89431.0,89411.0,0.228686]
[1731878311893,0.001,89429.0,89411.0,0.228686]
[1731878312102,0.111828,89423.0,89417.0,0.111834]
[1731878312313,0.002,89429.0,89412.0,0.223683]
[1731878312533,0.111829,89423.0,89412.0,0.223683]
[1731878312740,0.111829,89423.0,89414.0,0.223678]
[1731878312948,0.001,89429.0,89411.0,0.223686]
[1731878312949,0.111833,89419.0,89411.0,0.223686]
[1731878313154,0.11006255,89429.0,89414.0,0.111838]
[1731878313391,0.111832,89420.0,89414.0,0.111838]
[1731878314014,0.111833,89419.0,89414.0,0.111838]
[1731878314254,0.111832,89420.0,89414.0,0.111838]
[1731878314461,0.223659,89422.0,89414.0,0.111838]
[1731878314685,0.16735001,89420.0,89410.0,0.0817]
[1731878314911,0.22365,89426.0,89410.0,0.0817]
[1731878315121,0.111835,89418.0,89411.0,0.111842]
[1731878315343,0.111835,89418.0,89413.0,0.11184]
[1731878315563,0.111832,89420.0,89414.0,0.11226]
[1731878315776,0.223653,89424.0,89414.0,0.000422]
[1731878315992,0.11006255,89429.0,89410.0,0.0817]
[1731878315993,0.001,89420.0,89410.0,0.305388]
[1731878316203,0.001,89420.0,89412.0,0.111841]
[1731878316412,0.111833,89419.0,89412.0,0.111841]
[1731878316643,0.001,89420.0,89410.0,0.0827]
[1731878316876,0.001,89420.0,89410.0,0.0817]
[1731878317087,0.111839,89414.0,89410.0,0.0817]
[1731878317317,0.111837,89416.0,89414.0,0.001]
[1731878317944,0.111838,89415.0,89414.0,0.001]
[1731878318397,0.224665,89420.0,89410.0,0.0817]
[1731878318609,0.111838,89415.0,89410.0,0.193543]
[1731878318858,0.111838,89415.0,89410.0,0.194543]
[1731878319036,0.111838,89415.0,89410.0,0.193543]
[1731878319274,0.112838,89415.0,89410.0,0.193543]
[1731878319515,0.113838,89415.0,89410.0,0.193543]
[1731878319724,0.113838,89415.0,89405.0,0.2237]
[1731878319725,0.002,89415.0,89405.0,0.2237]
[1731878319903,0.111842,89412.0,89407.0,0.111847]
[1731878320136,0.223678,89414.0,89403.0,0.0808]
[1731878320343,0.002,89415.0,89403.0,0.0808]
[1731878320809,0.003,89415.0,89403.0,0.0808]
[1731878321027,0.003,89415.0,89401.0,0.0008548]
[1731878321028,0.111854,89402.0,89401.0,0.0008548]
[1731878322295,0.22191655,89402.0,89401.0,0.0018548]
[1731878322499,0.22291655,89402.0,89401.0,0.0018548]
[1731878322711,0.22291655,89402.0,89401.0,0.0008548]
[1731878322712,0.22191655,89402.0,89401.0,0.0008548]
[1731878322917,0.22291655,89402.0,89401.0,0.0018548]
[1731878323748,0.22191655,89402.0,89401.0,0.0018548]
[1731878323964,0.113854,89402.0,89401.0,0.0018548]
[1731878326276,0.002,89402.0,89401.0,0.0018548]
[1731878326985,0.113854,89402.0,89401.0,0.0018548]
[1731878328298,0.113854,89402.0,89388.0,0.223743]
[1731878328299,0.005,89365.0,89362.0,0.67112968]
[1731878328471,0.005,89365.0,89334.0,0.223878]
[1731878328472,0.0344,89360.0,89284.0,0.03457459]
[1731878328753,0.111995,89290.0,89289.0,0.01167081]
[1731878328965,0.005,89290.0,89284.0,0.00011025]
[1731878329167,0.217,89285.0,89284.0,0.00011025]
[1731878329376,0.227,89285.0,89284.0,0.00011025]
[1731878329581,0.222,89285.0,89284.0,0.00011025]
[1731878329802,0.26428482,89284.0,89283.0,0.11491512]
[1731878330010,0.217002,89284.0,89283.0,0.11491512]
[1731878330225,0.24375469,89285.0,89283.0,0.11491512]
[1731878330226,0.09911307,89285.0,89283.0,0.11491512]
[1731878330427,0.27551087,89284.0,89263.0,0.00011025]
[1731878330651,0.31581413,89276.0,89263.0,0.00011025]
[1731878330861,0.217012,89276.0,89258.0,0.00011025]
[1731878331964,0.22607455,89276.0,89259.0,0.67112968]
[1731878332200,0.22107455,89276.0,89261.0,0.16127948]
[1731878332416,0.24807455,89276.0,89271.0,0.15627948]
[1731878332648,0.22107455,89276.0,89271.0,0.15627948]
[1731878332856,0.108712,89276.0,89271.0,0.15627948]
[1731878333075,0.135712,89276.0,89271.0,0.15627948]
[1731878333279,0.135712,89276.0,89265.0,0.00684696]
[1731878333280,0.13606255,89276.0,89267.0,0.005]
[1731878333503,0.27907455,89276.0,89267.0,0.005]
[1731878333710,0.165012,89276.0,89270.0,0.005]
[1731878333929,0.139012,89276.0,89270.0,0.005]
[1731878334146,0.141012,89276.0,89266.0,0.3242987]
[1731878334353,0.114012,89276.0,89266.0,0.3242987]
[1731878334574,0.21702,89269.0,89265.0,0.00184696]
[1731878334780,0.21925139,89269.0,89267.0,0.16801922]
[1731878335318,0.21702,89269.0,89268.0,0.19191622]
[1731878335549,0.32608255,89269.0,89268.0,0.023897]
[1731878335708,0.35208255,89269.0,89268.0,0.023897]
[1731878336498,0.35708255,89269.0,89268.0,0.023897]
[1731878336705,0.35208255,89269.0,89268.0,0.023897]
[1731878336909,0.35208255,89269.0,89268.0,0.026897]
[1731878337396,0.37908255,89269.0,89268.0,0.023897]
[1731878337818,0.32608255,89269.0,89268.0,0.023897]
[1731878338025,0.35008255,89269.0,89268.0,0.023897]
[1731878338234,0.37708255,89269.0,89268.0,0.023897]
[1731878338439,0.32108255,89269.0,89268.0,0.023897]
[1731878338659,0.01,89269.0,89268.0,0.023897]
[1731878339082,0.004,89269.0,89268.0,0.023897]
[1731878340352,0.001,89269.0,89268.0,0.023897]
[1731878340762,0.001,89269.0,89268.0,0.024897]
[1731878340977,0.002,89269.0,89268.0,0.024897]
[1731878341193,0.112015,89274.0,89268.0,0.023897]
[1731878341402,0.112008,89279.0,89268.0,0.0257517]
[1731878341603,0.002,89269.0,89268.0,0.0257517]
[1731878342028,0.002,89269.0,89268.0,0.1367737]
[1731878342242,0.003,89269.0,89268.0,0.14501363]
[1731878342467,0.003,89269.0,89268.0,0.1427737]
[1731878342677,0.224001,89286.0,89268.0,0.1427737]
[1731878342678,0.112003,89284.0,89273.0,0.005]
[1731878342891,0.005,89290.0,89268.0,0.0257517]
[1731878342892,0.005,89290.0,89275.0,0.15627948]
[1731878343111,0.10906255,89289.0,89274.0,0.005]
[1731878343322,0.10906255,89289.0,89268.0,0.0257517]
[1731878343323,0.005,89286.0,89268.0,0.0257517]
[1731878343537,0.11202,89269.0,89268.0,0.0257517]
[1731878343789,0.112018,89271.0,89268.0,0.0307517]
[1731878344018,0.005,89282.0,89268.0,0.0307517]
[1731878344019,0.112017,89273.0,89268.0,0.0257517]
[1731878344228,0.005,89282.0,89268.0,0.0257517]
[1731878344229,0.112019,89270.0,89268.0,0.0257517]
[1731878344471,0.005,89282.0,89268.0,0.0257517]
[1731878344974,0.001,89269.0,89268.0,0.0297517]
[1731878345220,0.112017,89273.0,89268.0,0.0277517]
[1731878345448,0.112017,89273.0,89268.0,0.0327517]
[1731878345449,0.001,89270.0,89268.0,0.0327517]
[1731878345679,0.001,89270.0,89268.0,0.0297517]
[1731878345907,0.001,89270.0,89268.0,0.0317517]
[1731878346394,0.001,89270.0,89268.0,0.0297517]
[1731878346635,0.33306555,89285.0,89268.0,0.0247517]
[1731878346886,0.1,89287.0,89268.0,0.0267517]
[1731878347104,0.112008,89279.0,89272.0,0.112016]
[1731878347589,0.224011,89281.0,89273.0,0.112015]
[1731878347778,0.112007,89280.0,89275.0,0.112013]
[1731878348339,0.112007,89281.0,89272.0,0.224034]
[1731878348587,0.112007,89281.0,89275.0,0.112013]
[1731878348845,0.15627948,89312.0,89278.0,0.112009]
[1731878348846,0.001,89279.0,89278.0,0.112009]
[1731878349115,0.001,89279.0,89278.0,0.28502822]
[1731878349335,0.001,89279.0,89278.0,0.117009]
[1731878350034,0.005,89298.0,89278.0,0.117008]
[1731878350272,0.10906255,89297.0,89277.0,0.005]
[1731878350529,0.10906255,89297.0,89282.0,0.16801922]
[1731878350803,0.005,89289.0,89278.0,0.005]
[1731878351031,0.217012,89276.0,89275.0,0.002]
[1731878351287,0.217012,89276.0,89268.0,0.19277092]
[1731878351288,0.21702,89269.0,89268.0,0.19277092]
[1731878352226,0.21702,89269.0,89268.0,0.0247517]
[1731878352227,0.32608255,89269.0,89268.0,0.0247517]
[1731878352963,0.22108255,89269.0,89268.0,0.0247517]
[1731878353215,0.12402,89269.0,89268.0,0.0257517]
[1731878353670,0.023,89269.0,89268.0,0.0267517]
[1731878353968,0.023,89269.0,89268.0,0.1387737]
[1731878354193,0.011,89269.0,89268.0,0.1427737]
[1731878354420,0.0017118,89286.0,89278.0,0.224018]
[1731878354659,0.0017118,89286.0,89283.0,0.112002]
[1731878354892,0.0017118,89286.0,89276.0,0.005]
[1731878354893,0.0017118,89286.0,89285.0,0.112]
[1731878355355,0.0017118,89286.0,89285.0,0.117]
[1731878355583,0.0017118,89286.0,89285.0,0.11923929]
[1731878355815,0.0017118,89286.0,89285.0,0.117]
[1731878356578,0.111976,89305.0,89293.0,0.005]
[1731878356771,0.111973,89307.0,89300.0,0.111981]
[1731878357019,0.111975,89306.0,89300.0,0.111981]
[1731878357477,0.111975,89306.0,89296.0,0.16801922]
[1731878357478,0.10906255,89310.0,89297.0,0.223971]
[1731878357726,0.111975,89305.0,89297.0,0.111985]
[1731878357904,0.10906255,89310.0,89296.0,0.16801922]
[1731878358139,0.111974,89307.0,89301.0,0.11198]
[1731878358344,0.10906255,89310.0,89300.0,0.004]
[1731878358550,0.111972,89308.0,89300.0,0.004]
[1731878358752,0.10906255,89310.0,89300.0,0.004]
[1731878358753,0.111973,89307.0,89300.0,0.113981]
[1731878358967,0.111971,89309.0,89301.0,0.11198]
[1731878359145,0.10906255,89310.0,89302.0,0.111978]